{"text_format":"3","workbook":"xlsx","n_sheets":2,"sheets":["Algus","Pulmaeelarve"],"read":"whole","date_system":"1900"}

{"sheet":"Algus","index":0,"n_rows":7,"n_cols":2,"rows_kept":7}
[null,"TEAVE SELLE MALLI KOHTA"]
[null,"Selle malli abil saate kajastada tegelikke pulmakulusid mitmesuguste üksuste kaupa ja jälgida neid võrreldes eelarvesummadega."]
[null,"Sisestage asjakohastesse tabelitesse rõivaste, kaunistuste, kingituste, lillede, muusika, fotograafia, vastuvõtu, kirjatarvete, transpordi ja muude üksuste kulud."]
[null,"Prognoositud kogusumma ja tegelikud koguväljaminekud arvutatakse automaatselt."]
[null,"Märkus. "]
[null,"Lisajuhised leiate töölehe PULMAEELARVE veerust A. See tekst on tahtlikult peidetud. Teksti eemaldamiseks valige veerg A ja seejärel käsk KUSTUTA. Teksti kuvamiseks valige veerg A ja muutke seejärel fondi värvi."]
[null,"Tabelite kohta lisateabe saamiseks vajutage tabelis tõstuklahvi (SHIFT) ja seejärel klahvi F10, valige suvand TABEL ja seejärel käsk ASETEKST."]

{"sheet":"Pulmaeelarve","index":1,"n_rows":93,"n_cols":4,"rows_kept":93,"merged":[[0,1,0,3],[2,1,2,3],[6,1,6,3],[15,1,15,3],[25,1,25,3],[34,1,34,3],[43,1,43,3],[50,1,50,3],[59,1,59,3],[68,1,68,3],[77,1,77,3],[85,1,85,3]]}
[null,"PULMAEELARVE"]
[]
[null,"KULUD KOKKU "]
[null,"Üksus ","Prognoos","Tegelik"]
[null,"Kogukulu ",{"$f":"SUM(Rõivad[[#Totals],[Prognoos]],Kaunistused[[#Totals],[Prognoos]],Kingitused[[#Totals],[Prognoos]],Lilled[[#Totals],[Prognoos]],Muusika[[#Totals],[Prognoos]],Fotod[[#Totals],[Prognoos]],Vastuvõtt[[#Totals],[Prognoos]],Kirjatarbed_ja_printimine[[#Totals],[Prognoos]],Transport[[#Totals],[Prognoos]],Muud_kulud[[#Totals],[Prognoos]])","v":0},{"$f":"SUM(Rõivad[[#Totals],[Tegelik]],Kaunistused[[#Totals],[Tegelik]],Kingitused[[#Totals],[Tegelik]],Lilled[[#Totals],[Tegelik]],Muusika[[#Totals],[Tegelik]],Fotod[[#Totals],[Tegelik]],Vastuvõtt[[#Totals],[Tegelik]],Kirjatarbed_ja_printimine[[#Totals],[Tegelik]],Transport[[#Totals],[Tegelik]],Muud_kulud[[#Totals],[Tegelik]],)","v":0}]
[]
[null,"RÕIVAD"]
[null,"Üksus ","Prognoos","Tegelik"]
[null,"Kihlasõrmus"]
[null,"Abielusõrmused"]
[null,"Pruutkleit"]
[null,"Loor/tiaara"]
[null,"Muu:"]
[null,"Rõivad kokku",{"$f":"SUBTOTAL(109,Rõivad[Prognoos])","v":0},{"$f":"SUBTOTAL(109,Rõivad[Tegelik])","v":0}]
[]
[null,"KAUNISTUSED"]
[null,"Üksus ","Prognoos","Tegelik"]
[null,"Kirikupinkide/istmete kaunistused"]
[null,"Lauakaunistused (välja arvatud lilled)"]
[null,"Küünlad"]
[null,"Valgustus"]
[null,"Õhupallid"]
[null,"Muu:"]
[null,"Kaunistused kokku",{"$f":"SUBTOTAL(109,Kaunistused[Prognoos])","v":0},{"$f":"SUBTOTAL(109,Kaunistused[Tegelik])","v":0}]
[]
[null,"KINGITUSED"]
[null,"Üksus ","Prognoos","Tegelik"]
[null,"Osalejad"]
[null,"Pruut ja peigmees"]
[null,"Emad-isad"]
[null,"Jutlustajad/teised osalised"]
[null,"Muu:"]
[null,"Kingitused kokku",{"$f":"SUBTOTAL(109,Kingitused[Prognoos])","v":0},{"$f":"SUBTOTAL(109,Kingitused[Tegelik])","v":0}]
[]
[null,"LILLED"]
[null,"Üksus ","Prognoos","Tegelik"]
[null,"Lillekimbud"]
[null,"Reväärikaunistused"]
[null,"Käekaunistused"]
[null,"Tseremoonia"]
[null,"Muu:"]
[null,"Lilled kokku",{"$f":"SUBTOTAL(109,Lilled[Prognoos])","v":0},{"$f":"SUBTOTAL(109,Lilled[Tegelik])","v":0}]
[]
[null,"MUUSIKA"]
[null,"Üksus ","Prognoos","Tegelik"]
[null,"Tseremooniamuusikud"]
[null,"Bänd/DJ vastuvõtuks"]
[null,"Muu:"]
[null,"Muusika kokku",{"$f":"SUBTOTAL(109,Muusika[Prognoos])","v":0},{"$f":"SUBTOTAL(109,Muusika[Tegelik])","v":0}]
[]
[null,"FOTOD"]
[null,"Üksus ","Prognoos","Tegelik"]
[null,"Ametlikud pildid"]
[null,"Vabas vormis pildid"]
[null,"Lisapildid"]
[null,"Fotoalbumid"]
[null,"Muu:"]
[null,"Fotograafia kokku",{"$f":"SUBTOTAL(109,Fotod[Prognoos])","v":0},{"$f":"SUBTOTAL(109,Fotod[Tegelik])","v":0}]
[]
[null,"VASTUVÕTT "]
[null,"Üksus ","Prognoos","Tegelik"]
[null,"Ruumi-/saalitasud"]
[null,"Lauad ja toolid"]
[null,"Toit"]
[null,"Laudlinad"]
[null,"Muu:"]
[null,"Vastuvõtt kokku (välja arvatud muusika ja kaunistused)",{"$f":"SUBTOTAL(109,Vastuvõtt[Prognoos])","v":0},{"$f":"SUBTOTAL(109,Vastuvõtt[Tegelik])","v":0}]
[]
[null,"KIRJATARBED JA TRÜKISED"]
[null,"Üksus ","Prognoos","Tegelik"]
[null,"Kutsed"]
[null,"Teadaanded"]
[null,"Tänukaardid"]
[null,"Isiklikud kirjatarbed"]
[null,"Muu:"]
[null,"Kirjatarbed/trükised kokku",{"$f":"SUBTOTAL(109,Kirjatarbed_ja_printimine[Prognoos])","v":0},{"$f":"SUBTOTAL(109,Kirjatarbed_ja_printimine[Tegelik])","v":0}]
[]
[null,"TRANSPORT"]
[null,"Üksus ","Prognoos","Tegelik"]
[null,"Limusiinid/vankrid"]
[null,"Parkimine"]
[null,"Taksod"]
[null,"Muu:"]
[null,"Transport kokku",{"$f":"SUBTOTAL(109,Transport[Prognoos])","v":0},{"$f":"SUBTOTAL(109,Transport[Tegelik])","v":0}]
[]
[null,"MUUD KULUD"]
[null,"Üksus ","Prognoos","Tegelik"]
[null,"Tseremooniameister"]
[null,"Kiriku/tseremooniakoha tasu"]
[null,"Pulmavanem"]
[null,"Prooviõhtusöök"]
[null,"Muu:"]
[null,"Muud väljaminekud kokku",{"$f":"SUBTOTAL(109,Muud_kulud[Prognoos])","v":0},{"$f":"SUBTOTAL(109,Muud_kulud[Tegelik])","v":0}]